[Event "ESP-ch Teams Primera 2022"]
[Site "Sanxenxo Pontevedra"]
[Date "2022.09.22"]
[Round "6.12"]
[White "Recuenco Andres, Javier"]
[Black "Hernandez Estevez, Yudania"]
[Result "1-0"]
[ECO "B11"]
[WhiteElo "1925"]
[BlackElo "2199"]
[Annotator "TA"]
[PlyCount "89"]
[EventDate "2022.09.17"]
[EventType "team-tourn"]
[EventCountry "ESP"]
[SourceTitle "playchess.com"]
[Source "ChessBase"]
[SourceQuality "1"]
[TimeControl "5400+30"]

{[%evp 12,89,19,0,74,74,74,68,64,-15,-10,8,75,83,89,76,68,78,73,30,78,76,85,68,92,81,80,42,58,55,95,-7,-7,-29,-29,-27,-18,-36,-22,-78,12,0,97,99,205,220,212,217,406,381,559,557,527,420,439,329,336,314,309,320,318,171,171,169,161,163,156,157,147,165,954,956,1102,1029,915,921,845,818,29981,29982]} 1. e4 c6 2. Nf3 d5 3. Nc3 Bg4 4. d4 e6 5. h3 Bxf3 6. Qxf3 Nf6 7. Bd3 Nbd7 {B11: Caro-Kann: Two Knights Variation.} (7... dxe4 $11 8. Nxe4 Qxd4) 8. e5 $16 Ng8 9. Ne2 {White has more active pieces.} Ne7 {[#] White is slightly better.} 10. Nf4 $146 (10. O-O $14) ({Predecessor:} 10. Bg5 Qa5+ 11. c3 c5 12. O-O cxd4 13. cxd4 Nc6 14. a3 Be7 15. Be3 O-O 16. Nf4 {1-0 (24) Sorokina,A (2110)-Melnik,G (2155) Svetlogorsk 1997}) 10... c5 $11 11. c3 Nc6 {[#]} (11... Qb6 $11) 12. Nxe6 $1 $16 Ndxe5 13. dxe5 (13. Nxd8 $6 Nxf3+ 14. gxf3 Rxd8 $11) 13... fxe6 14. Qh5+ Kd7 15. f4 Qe8 (15... c4 $11 16. Bc2 (16. Bxh7 g6 $17) 16... Bc5) 16. Qe2 Kc7 17. O-O g6 18. Be3 Rd8 19. a4 Be7 20. a5 Qf8 21. Qg4 (21. Bb5 $16) 21... c4 $1 $11 {Hoping for ...Bc5.} 22. Bc2 (22. Be2 $5 {[%cal Rg4e6]}) 22... Bc5 23. Qe2 Kb8 24. Rfd1 Qe7 25. b3 (25. Bxc5 $11 Qxc5+ 26. Qf2 Qxf2+ 27. Kxf2) 25... d4 (25... g5 $17 {And now ...cxb3 would win.} 26. fxg5 cxb3 27. Bxb3 Rdg8) 26. cxd4 Bxd4 (26... Rxd4 $11 {remains equal.} 27. Qf2 (27. Bxd4 $2 Nxd4 28. Qxc4 Nxc2+ 29. Kh2 Nxa1 $19) 27... cxb3 28. Bxb3 Rxd1+ 29. Bxd1 (29. Rxd1 Bxe3 30. Qxe3 Nxa5 $11) 29... Bxe3 30. Qxe3 Nb4) 27. Bxd4 $16 {White now steadily converts the win.} ({But not} 27. bxc4 Bxa1 28. Rxa1 g5 $15) 27... cxb3 {[#]} (27... Nxd4 $16 28. Qxc4 Nxc2 29. Qxc2 g5) 28. Bxa7+ $1 $18 {[%mdl 512]} Nxa7 29. Bxb3 g5 $2 (29... Rxd1+ 30. Rxd1 Nc6) 30. fxg5 Qxg5 (30... Rxd1+ $142 31. Rxd1 Rd8) 31. a6 Rxd1+ 32. Rxd1 Rd8 33. Bxe6 (33. Rxd8+ Qxd8 34. Qf2 (34. Qe3 bxa6 35. Bxe6 Nc6 $16) 34... bxa6 $16) 33... Rxd1+ 34. Qxd1 {[%mdl 4096] Endgame White threatens Qd6+ and mate. KQB-KQN} Qe3+ 35. Kh1 {Threatening mate with Qd8+.} Nc6 {Prevents Qd8+.} 36. Qd6+ (36. Bd5 $142 {Threatens to win with Bxc6.} Nxe5 37. axb7 (37. Qb1 b6 $16)) 36... Ka7 37. axb7 Qc1+ 38. Kh2 {Qf8 is the strong threat.} Qf4+ 39. Kg1 Qc1+ 40. Kf2 Qb2+ $2 (40... Qf4+ 41. Ke2 Qe4+ 42. Kd1 Qa4+ 43. Ke1 Qh4+ 44. Kd1 Qa4+ 45. Kc1 Qf4+ 46. Qd2 Qxe5) 41. Kg3 Qxb7 42. Qa3+ Kb8 43. Qf8+ Ka7 44. Bd5 {Intending Qc5+ and mate.} Qc7 45. Qc5+ {Weighted Error Value: White=0.28 (precise) /Black=0.49} 1-0

[Event "ESP-ch Teams Primera 2022"]
[Site "Sanxenxo Pontevedra"]
[Date "2022.09.22"]
[Round "6.13"]
[White "Alsina Leal, Daniel"]
[Black "Vallejo Pons, Francisco"]
[Result "0-1"]
[ECO "B46"]
[WhiteElo "2525"]
[BlackElo "2711"]
[Annotator "TA"]
[PlyCount "72"]
[EventDate "2022.09.17"]
[EventType "team-tourn"]
[EventCountry "ESP"]
[SourceTitle "playchess.com"]
[Source "ChessBase"]
[SourceQuality "1"]
[TimeControl "5400+30"]

{[%evp 13,72,42,43,23,53,35,39,46,37,0,-10,-32,36,43,66,56,60,29,122,115,110,110,116,110,104,115,110,106,117,109,105,64,43,65,137,139,180,188,220,0,0,-9,-28,-94,-71,-108,-129,-135,-121,-143,-47,-191,-160,-309,-275,-604,-372,-781,-782,-735,-720]} 1. e4 {[%emt 0:00:02]} c5 {[%emt 0:02:09]} 2. Nf3 {[%emt 0:00:12]} e6 {[%emt 0:00:06]} 3. d4 {[%emt 0:00:17]} cxd4 {[%emt 0:00:04]} 4. Nxd4 {[%emt 0:00:04]} Nc6 {[%emt 0:00:10]} 5. Nc3 {[%emt 0:00:23]} a6 {[%emt 0:00:14]} 6. Be2 {[%emt 0:01:03]} d6 {[%emt 0:03:05]} 7. Be3 {[%emt 0:03:01]} Nf6 {[%emt 0:00:19]} 8. Qd2 {[%emt 0:02:22] B90: Sicilian Najdorf: Unusual White 6th moves, 6 Be3 Ng4 and 6 Be3 e5.} Bd7 {[%emt 0:07:28] is the legacy move (8...Be7).} 9. f4 {[%emt 0:15:17]} b5 {[%emt 0:05:22]} 10. a3 {[%emt 0:07:00] White is slightly better.} Rc8 {[%emt 0:12:15] [#]} 11. g4 $5 $146 {[%emt 0:17:06][%mdl 8] An interesting novelty.} (11. O-O $14) ({Predecessor:} 11. O-O Be7 12. Nb3 O-O 13. g4 h6 14. h4 Nh7 15. g5 hxg5 16. fxg5 Ne5 17. Nd4 g6 {½-½ (17) Wagner,D (2543)-Movsesian,S (2677) Dresden 2017}) 11... Nxg4 $11 {[%emt 0:27:25]} 12. Bxg4 {[%emt 0:04:16]} Nxd4 {[%emt 0:01:38]} (12... Qh4+ $15 13. Qf2 Qxg4) 13. Bxd4 $14 {[%emt 0:00:53] Strongly threatening 0-0-0.} Qh4+ {[%emt 0:00:57]} 14. Qf2 $1 {[%emt 0:00:45]} Qxg4 {[%emt 0:00:08]} 15. Rg1 $36 {[%emt 0:01:25][%mdl 2048] White is more active.} Qh3 {[%emt 0:08:15]} (15... Qh5 $11) 16. O-O-O $1 $16 {[%emt 0:02:35][%mdl 1024] White has strong compensation.} f6 {[%emt 0:01:08]} 17. Kb1 {[%emt 0:18:51]} Qh5 {[%emt 0:01:52]} 18. Rd3 {[%emt 0:05:14]} Qf7 {[%emt 0:01:41]} 19. f5 {[%emt 0:01:24]} e5 {[%emt 0:02:03]} 20. Bb6 {[%emt 0:01:15][%cal Bd4b6,Bb6a5,Ba5b4][%mdl 32]} Bc6 {[%emt 0:03:48]} 21. Ba5 {[%emt 0:02:57]} g5 {[%emt 0:01:40]} 22. fxg6 {[%emt 0:08:35]} hxg6 {[%emt 0:00:48]} 23. Bb4 {[%emt 0:00:03]} Rd8 {[%emt 0:02:22] [#]} (23... f5 $1 $14) 24. Rgd1 $1 {[%emt 0:00:31]} Bb7 {[%emt 0:10:38]} 25. Qb6 {[%emt 0:02:20][%cal Rb4d6]} Rxh2 {[%emt 0:00:23]} 26. Nd5 $2 {[%emt 0:01:18]} ({Not} 26. Ba5 Rd7 $15) ({White has to play} 26. Bxd6 $18 Rxd6 27. Rxd6 Bxd6 28. Qxd6) 26... Rh7 $1 $11 {[%emt 0:01:47]} 27. Rc3 {[%emt 0:03:10] Hoping for Nc7+.} Bxd5 {[%emt 0:01:27]} 28. Rxd5 {[%emt 0:00:14]} (28. Ba5 $1 $11 Qd7 29. exd5 (29. Qxd8+ Qxd8 30. Bxd8 Bxe4 $15)) 28... Qb7 $17 {[%emt 0:02:29]} 29. Qg1 {[%emt 0:00:11] Inhibits Rh1.} Kf7 {[%emt 0:01:48]} 30. Rcd3 {[%emt 0:00:27][%cal Rb4d6]} g5 {[%emt 0:00:37]} 31. Qf2 {[%emt 0:01:45][%cal Rb4d6]} Qc8 {[%emt 0:01:20]} ({Better is} 31... Rh1+ $17 32. Ka2 Rh4) 32. Rc3 {[%emt 0:00:36] [#]} (32. Bxd6 $15 Rh1+ 33. Ka2 Rxd6 34. Rxd6 Bxd6 35. Rxd6) 32... Qg4 $1 $19 {[%emt 0:00:29]} 33. Qb6 {[%emt 0:00:55]} (33. Qa7+ $17 {was called for.} Kg6 34. Qxa6) 33... Qxe4 {[%emt 0:00:26]} 34. Qc7+ $2 {[%emt 0:00:31]} (34. Rc7+ Kg8 35. Rxh7 Qxh7 36. Rd2) 34... Be7 {[%emt 0:00:27]} 35. Rcd3 {[%emt 0:00:31]} (35. Rdd3 Qg4 36. Qb7) 35... Rh1+ {[%emt 0:00:20]} 36. Ka2 {[%emt 0:00:26]} Qc4+ {[%emt 0:00:11] Quite a comeback for Black.  Weighted Error Value: White=0.83/Black=0.33} 0-1

[Event "ESP-ch Teams Primera 2022"]
[Site "Sanxenxo Pontevedra"]
[Date "2022.09.22"]
[Round "6.14"]
[White "Narayanan.S.L"]
[Black "Lorenzo De La Riva, Lazaro"]
[Result "1-0"]
[ECO "E71"]
[WhiteElo "2657"]
[BlackElo "2430"]
[Annotator "TA"]
[PlyCount "101"]
[EventDate "2022.09.17"]
[EventType "team-tourn"]
[EventCountry "ESP"]
[SourceTitle "playchess.com"]
[Source "ChessBase"]
[SourceQuality "1"]
[TimeControl "5400+30"]

{[%evp 9,101,31,57,28,33,25,35,45,48,45,42,17,32,33,75,82,126,88,82,75,111,103,103,94,110,57,70,72,126,122,137,161,166,155,213,208,253,227,219,169,174,171,168,173,163,180,233,208,225,210,209,220,207,116,134,135,115,125,158,129,137,125,162,162,162,162,162,162,208,177,192,201,193,201,260,173,188,0,247,245,653,539,618,635,777,771,680,657,1279,1302,1208,1206,1020,636]} 1. d4 Nf6 2. c4 g6 3. Nc3 Bg7 4. e4 d6 5. h3 e5 6. d5 {E71: King's Indian: 4 e4 d6 5 h3.} a5 7. Bg5 $5 {[%mdl 4] Exploring less charted territory.} Na6 8. Bd3 {[#] White is slightly better.} h6 $146 ({Predecessor:} 8... O-O 9. Nge2 Bd7 10. O-O h6 11. Be3 Nh5 12. Qd2 f5 13. exf5 gxf5 14. f4 e4 15. Bc2 Nc5 16. Kh2 Qe7 17. Rae1 Kh8 18. Rg1 {½-½ (18) Shlyakhtenko,R (2421)-Kavutskiy,K (2401) Los Angeles 2022}) 9. Be3 (9. Qa4+ Bd7 10. Bxf6 Qxf6 $15) 9... Nd7 10. Nge2 Nac5 11. Bc2 Nb6 12. b3 $1 c6 13. dxc6 bxc6 14. Qd2 Ra7 15. Rd1 Rd7 16. O-O a4 {[#]} 17. Kh1 ({Better is} 17. f4 $1 $16) 17... axb3 18. axb3 Ne6 {[#]} (18... Bb7 $142) 19. f4 $1 $16 exf4 20. Nxf4 Nxf4 21. Bxf4 Bb7 (21... Be5 $16 22. Bxe5 dxe5) 22. Qe3 $18 g5 23. Bg3 {Strongly threatening e5.} O-O 24. e5 dxe5 25. Qe4 {[%csl Gc2][%cal Re4h7]} (25. Bxe5 Re8 26. Bc7 (26. Rxd7 $2 Nxd7 27. Bh7+ Kxh7 $19) 26... Rxe3 $17) 25... f5 26. Rxf5 Rxd1+ 27. Nxd1 Rxf5 (27... Nd7 $142 28. Ne3 Nf6 29. Rxf6 (29. Qxe5 Bc8 $14) 29... Rxf6 30. Bxe5 (30. Qh7+ Kf8 $16) 30... Qe7) 28. Qxf5 {Black must now prevent Qe6+.} Bc8 {Inhibits Qe6+.} 29. Qg6 {aiming for Bxe5.} Qf6 30. Qe8+ Bf8 31. Ne3 ({Don't take} 31. Bxe5 $6 Bd7 32. Bxf6 (32. Qb8 Qf1+ 33. Kh2 Qe2 $16) 32... Bxe8 $16) (31. Nf2 $18) 31... Bd7 $16 32. Qxe5 {White is much more active.} Qxe5 33. Bxe5 Be6 34. Kg1 Nd7 35. Bc3 Kf7 36. Kf2 Nf6 37. Kf3 h5 38. Bf5 {Against g4+} Nd7 (38... g4+ {was necessary.} 39. hxg4 hxg4+ 40. Bxg4 (40. Nxg4 Bxf5 41. Nxf6 Bg7 $11) 40... Nxg4) 39. Bxe6+ Kxe6 $18 {[%mdl 4096] Endgame KBN-KBN} 40. Nc2 c5 41. Ne3 Bd6 42. Nd5 {g4 is the strong threat.} Kf5 43. Ne3+ (43. g4+ $142 hxg4+ 44. hxg4+ Ke6 45. Ke4) 43... Ke6 44. Ke4 Be5 $2 (44... Be7 45. Nd5 Bd8) 45. Bxe5 {White is clearly winning.} Nxe5 {KN-KN} 46. Nf5 Nc6 47. Ng7+ Kd6 48. Nxh5 Na5 49. Kf5 Nxb3 50. Nf6 Ke7 51. Nd5+ {Weighted Error Value: White=0.18 (very precise) /Black=0.25 (precise)} 1-0

[Event "ESP-ch Teams Primera 2022"]
[Site "Sanxenxo Pontevedra"]
[Date "2022.09.22"]
[Round "6.15"]
[White "Alonso Moyano, Jonathan"]
[Black "Fier, Alexandr"]
[Result "0-1"]
[ECO "D00"]
[WhiteElo "2348"]
[BlackElo "2583"]
[Annotator "TA"]
[PlyCount "54"]
[EventDate "2022.09.17"]
[EventType "team-tourn"]
[EventCountry "ESP"]
[SourceTitle "playchess.com"]
[Source "ChessBase"]
[SourceQuality "1"]
[TimeControl "5400+30"]

{[%evp 9,53,0,10,0,0,-94,-66,-68,-60,-173,-171,-185,-149,-168,-145,-260,-248,-269,-279,-329,-264,-256,-246,-316,-344,-339,-328,-337,-305,-265,-223,-704,-658,-651,-637,-845,-835,-809,-677,-916,-910,-29982,-29983,-29998,-29999,-29999]} 1. d4 {[%emt 0:01:44]} d5 {[%emt 0:00:32]} 2. Bf4 {[%emt 0:00:06]} Bf5 {[%emt 0:00:05]} 3. c4 {[%emt 0:03:45]} e6 {[%emt 0:00:07]} 4. Nc3 {[%emt 0:00:50]} Nf6 {[%emt 0:00:16]} 5. e3 {[%emt 0:09:00]} Bb4 {[%emt 0:00:07]} 6. Qb3 {[%emt 0:08:11] D06: Queen's Gambit: Symmetrical and Baltic Defences.} Nc6 {[%emt 0:00:22] [#]} 7. O-O-O $146 {[%emt 0:20:32]} (7. Bg5 $11 {keeps the balance.}) ({Predecessor:} 7. cxd5 Nxd5 8. Bb5 Nxf4 9. exf4 Qxd4 10. Bxc6+ bxc6 11. Nge2 Qb6 12. O-O O-O 13. Na4 {0-1 (45) Kamsky,G (2658)-Caruana,F (2781) Chess.com INT 2022}) 7... a5 {[%emt 0:01:43][%cal Ba7a5,Ba5a4,Ba4a3][%mdl 32]} 8. f3 {[%emt 0:00:36] Inhibits Ne4. Black is slightly better.} Qe7 {[%emt 0:08:10][%cal Oa5a4]} 9. e4 (9. Qa4 $15) 9... dxe4 {[%emt 0:00:40]} 10. fxe4 {[%emt 0:11:15]} a4 {[%emt 0:02:40]} ({And not} 10... Nxe4 11. Nxe4 Bxe4 12. Qe3 $17) 11. Qc2 {[%emt 0:04:04]} Bg6 $36 {[%emt 0:05:32][%mdl 2048] Strongly threatening ...a3. Black is on the roll.} 12. Nge2 {[%emt 0:09:15]} (12. Nb5 $17 Ba5 13. a3) 12... a3 $19 {[%emt 0:02:32]} 13. b3 {[%emt 0:00:12]} O-O-O {[%emt 0:01:45] aiming for ...Bxc3.} 14. Be3 {[%emt 0:07:02]} Ng4 {[%emt 0:05:04]} 15. Bg1 {[%emt 0:00:22] [#]} Qg5+ {[%emt 0:00:07]} 16. Qd2 {[%emt 0:00:17]} Qa5 {[%emt 0:00:05]} 17. Qc2 {[%emt 0:02:29]} f5 {[%emt 0:00:53]} 18. Nb5 {[%emt 0:01:23]} ({Not} 18. h3 Nf6 19. Be3 fxe4 $19) 18... fxe4 {[%emt 0:01:04] White must now prevent ...e3.} 19. Nf4 {[%emt 0:02:45]} Bf5 {[%emt 0:00:08] And now ...e3 would win.} 20. Qe2 {[%emt 0:00:27] Inhibits e3.} (20. h3 e3 21. Bd3 Bd2+ 22. Rxd2) 20... e3 {[%emt 0:01:51]} 21. Bxe3 {[%emt 0:00:51]} Bc3 {[%emt 0:00:04]} 22. Nd3 {[%emt 0:03:46] Prevents Bb2+.} Nxe3 {[%emt 0:00:40]} 23. Qxe3 {[%emt 0:00:03]} Nxd4 {[%emt 0:00:06]} 24. Nxd4 {[%emt 0:06:18]} Bxd4 {[%emt 0:00:05] A strong pair of Bishops.} 25. Qd2 {[%emt 0:00:09] [#]} Be3 $1 {[%emt 0:00:04][%mdl 512] Black mates.} 26. Qxe3 {[%emt 0:00:09]} (26. b4 Qb6) 26... Qc3+ {[%emt 0:00:04]} 27. Kb1 {[%emt 0:00:05]} Qb2# {White did not feel at home in the position after the opening.  Weighted Error Value: White=1.10/Black=0.24 (precise)} 0-1

[Event "ESP-ch Teams Primera 2022"]
[Site "Sanxenxo Pontevedra"]
[Date "2022.09.22"]
[Round "6.16"]
[White "Adla, Diego"]
[Black "Martinez Ramirez, Erik"]
[Result "1/2-1/2"]
[ECO "A16"]
[WhiteElo "2393"]
[BlackElo "2181"]
[Annotator "TA"]
[PlyCount "175"]
[EventDate "2022.09.17"]
[EventType "team-tourn"]
[EventCountry "ESP"]
[SourceTitle "playchess.com"]
[Source "ChessBase"]
[SourceQuality "1"]
[TimeControl "5400+30"]

{[%evp 15,174,19,17,21,12,12,12,13,11,18,30,4,16,8,18,0,28,0,17,0,0,2,6,0,0,0,0,0,0,0,0,0,0,0,0,0,0,0,0,0,0,0,0,0,0,0,0,0,0,0,0,0,0,0,0,0,0,0,52,53,53,27,85,85,85,85,85,85,85,61,61,0,12,0,0,0,0,0,0,0,0,0,0,0,0,0,0,0,0,0,0,0,0,0,0,0,0,0,0,0,0,0,0,0,0,0,0,0,0,0,0,0,0,0,0,0,0,0,0,0,0,0,0,0,0,0,0,0,0,0,0,0,0,0,0,0,0,0,0,0,0,0,0,0,0,0,0,0,0,0,0,0,0,0,0,0,0,0,0,0,0]} 1. c4 {[%emt 0:00:44] Ribli,Z} Nf6 {[%emt 0:00:10]} 2. Nc3 {[%emt 0:00:19]} d5 {[%emt 0:00:23]} 3. cxd5 {[%emt 0:00:28]} Nxd5 {[%emt 0:00:07]} 4. Nf3 {[%emt 0:00:07]} g6 {[%emt 0:00:16]} 5. e4 {[%emt 0:00:09]} Nxc3 {[%emt 0:00:06]} 6. dxc3 {[%emt 0:00:06]} Qxd1+ {[%emt 0:00:06]} 7. Kxd1 {[%emt 0:00:07]} f6 {[%emt 0:00:06]} 8. Be3 {[%emt 0:05:19]} e5 {[%emt 0:10:03]} 9. a4 {[%emt 0:01:27] A16: English Opening: 1...Nf6 with ...d5.} a5 {[%emt 0:01:51]} 10. Nd2 {[%emt 0:03:52]} Be6 {[%emt 0:00:43]} 11. Bc4 {[%emt 0:00:49]} Bxc4 {[%emt 0:11:26]} 12. Nxc4 {[%emt 0:00:05]} Nd7 {[%emt 0:00:06] [#]} 13. Ke2 $146 {[%emt 0:00:21]} ({Predecessor:} 13. Kc2 Bc5 14. Rhd1 Bxe3 15. Nxe3 Nc5 16. f3 Rf8 17. Rd5 b6 18. Rad1 Rf7 19. b3 {½-½ (33) Rogers,I (2535)-Miralles,G (2460) Geneve 1990 CBM 021 [Ribli,Z]}) 13... Bc5 {[%emt 0:08:56]} 14. Rhd1 {[%emt 0:00:08][%cal Od1d7]} b6 {[%emt 0:00:44]} 15. Bd2 {[%emt 0:11:37]} Ke7 {[%emt 0:03:53]} 16. f4 {[%emt 0:01:08]} Ke6 {[%emt 0:02:24]} 17. Rf1 {[%emt 0:01:19]} exf4 {[%emt 0:03:29]} 18. Bxf4 {[%emt 0:00:07]} Ne5 {[%emt 0:00:21]} 19. Bxe5 {[%emt 0:07:25]} fxe5 {[%emt 0:00:11]} 20. Rad1 {[%emt 0:01:22]} Rhd8 {[%emt 0:04:04] Inhibits Rd5.} 21. Rxd8 {[%emt 0:01:07]} Rxd8 $11 {[%emt 0:00:02][%mdl 4096] Endgame KRB-KRN} 22. Nd2 {[%emt 0:00:08]} c6 {[%emt 0:02:57]} 23. Nc4 {[%emt 0:10:56]} Ra8 {[%emt 0:02:09]} 24. Ra1 {[%emt 0:01:44]} Rf8 {[%emt 0:00:12]} 25. Rf1 {[%emt 0:00:04] Prevents Rf2+.} Ra8 {[%emt 0:00:26]} 26. Nd2 {[%emt 0:00:04]} Rd8 {[%emt 0:09:52]} 27. Nf3 {[%emt 0:12:43] [#] Black must now prevent Ng5+.} Be7 {[%emt 0:00:08] Against Ng5+} 28. Rd1 {[%emt 0:00:19]} Rf8 {[%emt 0:02:02]} 29. Kd3 {[%emt 0:03:44]} Rd8+ {[%emt 0:01:04]} 30. Kc2 {[%emt 0:00:15]} Rf8 {[%emt 0:00:05]} 31. Rf1 {[%emt 0:02:00]} Rd8 {[%emt 0:10:57]} 32. Ne1 {[%emt 0:00:31]} Ra8 {[%emt 0:04:25]} 33. Nd3 {[%emt 0:00:38]} Bg5 {[%emt 0:00:56]} 34. Rf3 {[%emt 0:07:09]} Rd8 {[%emt 0:00:34]} 35. h4 {[%emt 0:01:45]} Be7 {[%emt 0:01:09]} 36. h5 {[%emt 0:02:00]} Bf6 {[%emt 0:04:25]} (36... gxh5 $11 37. Rf5 Bf6) 37. hxg6 $14 {[%emt 0:01:37]} hxg6 {[%emt 0:00:02]} 38. Rh3 {[%emt 0:00:06]} Rd7 {[%emt 0:11:02]} (38... Be7 $11) 39. Rh6 $16 {[%emt 0:00:23]} Kf7 {[%emt 0:00:01]} 40. Rh7+ {[%emt 0:00:23]} Ke6 {[%emt 0:00:01]} 41. Rxd7 {[%emt 0:00:37]} Kxd7 {[%emt 0:00:01] KB-KN} 42. Kb3 {[%emt 0:02:32]} b5 {[%emt 0:01:38]} 43. Ka3 {[%emt 0:10:37]} (43. c4 $1 $14) 43... Be7+ {[%emt 0:00:44] The position is equal.} 44. b4 {[%emt 0:00:04]} Bd6 {[%emt 0:00:55]} 45. Kb3 {[%emt 0:01:21]} bxa4+ {[%emt 0:01:11]} 46. Kxa4 {[%emt 0:00:06]} axb4 {[%emt 0:00:03]} 47. cxb4 {[%emt 0:00:12]} Kc7 {[%emt 0:01:16]} 48. Kb3 {[%emt 0:01:32]} Kd7 {[%emt 0:02:17]} 49. Kc4 {[%emt 0:02:12]} Bb8 {[%emt 0:00:02]} 50. Ne1 {[%emt 0:02:25]} Ba7 {[%emt 0:00:14]} 51. Nf3 {[%emt 0:00:32]} Ke6 {[%emt 0:00:03]} 52. b5 {[%emt 0:00:19]} cxb5+ {[%emt 0:00:06]} 53. Kxb5 {[%emt 0:00:04]} Be3 {[%emt 0:00:47]} 54. Kc6 {[%emt 0:00:06]} Bf4 {[%emt 0:02:02]} 55. Nh4 {[%emt 0:00:34]} Kf6 {[%emt 0:01:29]} 56. Kd5 {[%emt 0:00:39]} Bg3 {[%emt 0:02:37]} 57. Nf3 {[%emt 0:00:19]} g5 {[%emt 0:00:18]} 58. Ng1 {[%emt 0:00:26]} g4 {[%emt 0:00:19]} 59. Ne2 {[%emt 0:00:04]} Be1 {[%emt 0:00:25]} 60. Nc1 {[%emt 0:01:22]} Bc3 {[%emt 0:00:34]} 61. Nd3 {[%emt 0:01:15]} Kg5 {[%emt 0:00:33]} 62. Nxe5 {[%emt 0:03:19] And now Nd3 would win.} Kf4 {[%emt 0:00:02]} 63. Nc4 {[%emt 0:00:08]} Kg3 {[%emt 0:00:13]} 64. Ne3 {[%emt 0:00:07]} Kf4 {[%emt 0:02:15]} 65. Nf1 {[%emt 0:02:03][%cal Oe4e5] aiming for e5!} g3 {[%emt 0:00:10]} 66. Kc4 {[%emt 0:00:20]} Bb2 {[%emt 0:00:35]} 67. Kd3 {[%emt 0:00:04]} Bc1 {[%emt 0:00:21] Prevents Ne3.} 68. Kc2 {[%emt 0:03:45]} Ba3 {[%emt 0:00:01]} 69. Nd2 {[%emt 0:00:48]} Bb4 {[%emt 0:00:06]} 70. Kd3 {[%emt 0:00:19]} Bxd2 {[%emt 0:00:07][%mdl 64] [#] Remove Defender} 71. Kxd2 {[%emt 0:00:07]} Kxe4 $11 {[%emt 0:00:04] KP-KP} 72. Ke2 {[%emt 0:00:02]} Kf4 {[%emt 0:00:23]} 73. Kd3 {[%emt 0:00:13]} Kf5 {[%emt 0:00:35]} 74. Ke3 {[%emt 0:00:04]} Ke5 {[%emt 0:00:30]} 75. Kf3 {[%emt 0:00:04]} Kf5 {[%emt 0:00:05]} 76. Kxg3 {[%emt 0:00:04] KP-K} Kg5 {[%emt 0:00:05]} 77. Kf3 {[%emt 0:00:04]} Kf5 {[%emt 0:00:05]} 78. g4+ {[%emt 0:00:04]} Kg5 {[%emt 0:00:15]} 79. Kg3 {[%emt 0:00:04]} Kg6 {[%emt 0:00:08]} 80. Kf4 {[%emt 0:00:03]} Kf6 {[%emt 0:00:08]} 81. g5+ {[%emt 0:00:05]} Kg6 {[%emt 0:00:04]} 82. Kg4 Kg7 83. Kf5 {[%emt 0:00:45]} Kf7 {[%emt 0:00:35]} 84. g6+ {[%emt 0:00:03]} Kg7 {[%emt 0:00:04]} 85. Kg5 {[%emt 0:00:04]} Kg8 {[%emt 0:00:07]} 86. Kf6 {[%emt 0:00:05]} Kf8 {[%emt 0:00:03]} 87. g7+ {[%emt 0:00:04]} Kg8 {[%emt 0:00:05]} 88. Kg6 {Weighted Error Value: White=0.05 (flawless) /Black=0.04 (flawless)} 1/2-1/2